fUSD/lending_fUSD_20250221
["ID","MTS","AMOUNT","RATE_DAILY","PERIOD"]
[353884010,1740111044395,-500.0,0.00013424,2]
[353884012,1740111044405,-500.0,0.00013424,2]
[353884014,1740111044414,-500.0,0.00013424,2]
[353884016,1740111044423,-509.18142852,0.00013424,2]
[353884018,1740111044432,-501.7781202,0.00013424,2]
[353884021,1740111044444,-503.83211256,0.00013424,2]
[353884023,1740111044453,-283.64901,0.00013424,2]
[353884025,1740111044462,-330.96409187,0.00013424,2]
[353884027,1740111044472,-500.0,0.00013424,2]
[353884029,1740111044481,-632.86386188,0.00013424,2]
[353884031,1740111044490,-510.7,0.00013424,2]
[353884033,1740111044499,-502.02276464,0.00013424,2]
[353884035,1740111044509,-518.00568558,0.00013424,2]
[353884037,1740111044518,-620.90189249,0.00013424,2]
[353884039,1740111044527,-500.0,0.00013424,2]
[353884041,1740111044536,-500.0,0.00013424,2]
[353884043,1740111044546,-500.0,0.00013424,2]
[353884045,1740111044555,-500.0,0.00013424,2]
[353884046,1740111044565,-500.0,0.00013424,2]
[353884048,1740111044575,-179.47,0.00013424,2]
[353884050,1740111044584,-500.0,0.00013424,2]
[353884052,1740111044594,-500.0,0.00013424,2]
[353884055,1740111044603,-500.0,0.00013424,2]
[353884057,1740111044612,-538.85538647,0.00013424,2]
[353884059,1740111044622,-500.0,0.00013424,2]
[353884061,1740111044631,-740.79,0.00013424,2]
[353884062,1740111044640,-200.69,0.00013424,2]
[353884064,1740111044649,-510.8472397,0.00013424,2]
[353884066,1740111044659,-502.2836456,0.00013424,2]
[353884068,1740111044670,-500.0,0.00013424,2]
[353884071,1740111044680,-416.62,0.00013424,2]
[353884072,1740111044691,-150.67,0.00013424,2]
[353884074,1740111044700,-500.0,0.00013424,2]
[353884077,1740111044710,-503.7489516,0.00013424,2]
[353884078,1740111044719,-500.0,0.00013424,2]
[353884081,1740111044729,-554.66,0.00013424,2]
[353884082,1740111044738,-500.0,0.00013424,2]
[353884084,1740111044747,-239.23,0.00013424,2]
[353884086,1740111044757,-500.0,0.00013424,2]
[353884088,1740111044767,-328.81,0.00013424,2]
[353884091,1740111044777,-500.0,0.00013424,2]
[353884092,1740111044787,-477.42,0.00013424,2]
[353884094,1740111044796,-500.0,0.00013424,2]
[353884096,1740111044805,-502.54762887,0.00013424,2]
[353884098,1740111044815,-204.63,0.00013424,2]
[353884100,1740111044824,-500.0,0.00013424,2]
[353884102,1740111044833,-508.55,0.00013424,2]
[353884105,1740111044842,-172.7783348,0.00013424,2]
[353884107,1740111044852,-515.17003482,0.00013424,2]
[353884109,1740111044862,-500.0,0.00013424,2]
[353884111,1740111044872,-276.95,0.00013424,2]
[353884112,1740111044881,-500.0,0.00013424,2]
[353884114,1740111044890,-272.79,0.00013424,2]
[353884117,1740111044901,-501.41229492,0.00013424,2]
[353884118,1740111044910,-500.0,0.00013424,2]
[353884120,1740111044919,-500.0,0.00013424,2]
[353884122,1740111044928,-299.81,0.00013424,2]
[353884124,1740111044937,-500.0,0.00013424,2]
[353884126,1740111044949,-500.0,0.00013424,2]
[353884128,1740111044958,-578.87,0.00013424,2]
[353884130,1740111044967,-219.5,0.00013424,2]
[353884132,1740111044976,-351.78119446,0.00013424,2]
[353884134,1740111044985,-500.0,0.00013424,2]
[353884136,1740111044994,-179.14,0.00013424,2]
[353884138,1740111045003,-500.0,0.00013424,2]
[353884140,1740111045012,-317.32,0.00013424,2]
[353884142,1740111045021,-474.55940908,0.00013424,2]
[353884144,1740111045030,-500.0,0.00013424,2]
[353884146,1740111045039,-572.24082023,0.00013424,2]
[353884148,1740111045048,-500.0,0.00013424,2]
[353884150,1740111045057,-480.55,0.00013424,2]
[353884152,1740111045066,-500.0,0.00013424,2]
[353884154,1740111045075,-1000.0,0.00013424,2]
[353884156,1740111045084,-500.0,0.00013424,2]
[353884158,1740111045093,-386.79,0.00013424,2]
[353884160,1740111045102,-500.0,0.00013424,2]
[353884161,1740111045111,-500.0,0.00013424,2]
[353884164,1740111045121,-500.0,0.00013424,2]
[353884166,1740111045130,-502.21679088,0.00013424,2]
[353884168,1740111045139,-335.58,0.00013424,2]
[353884170,1740111045148,-500.0,0.00013424,2]
[353884171,1740111045157,-500.0,0.00013424,2]
[353884174,1740111045167,-472.02,0.00013424,2]
[353884175,1740111045176,-500.0,0.00013424,2]
[353884177,1740111045185,-346.16,0.00013424,2]
[353884179,1740111045195,-500.0,0.00013424,2]
[353884181,1740111045205,-506.72955301,0.00013424,2]
[353884183,1740111045214,-500.0,0.00013424,2]
[353884185,1740111045223,-199.64,0.00013424,2]
[353884187,1740111045233,-508.6455185,0.00013424,2]
[353884189,1740111045242,-500.0,0.00013424,2]
[353884191,1740111045251,-432.75,0.00013424,2]
[353884193,1740111045260,-500.0,0.00013424,2]
[353884195,1740111045269,-500.0,0.00013424,2]
[353884197,1740111045278,-500.0,0.00013424,2]
[353884199,1740111045288,-233.42,0.00013424,2]
[353884201,1740111045297,-500.0,0.00013424,2]
[353884203,1740111045306,-504.14891415,0.00013424,2]
[353884205,1740111045315,-500.0,0.00013424,2]
[353884207,1740111045324,-1502.11,0.00013424,2]
[353884209,1740111045333,-1502.11,0.00013424,2]
[353884211,1740111045343,-1502.11,0.00013424,2]
[353884213,1740111045352,-500.0,0.00013424,2]
[353884215,1740111045364,-500.0,0.00013424,2]
[353884217,1740111045373,-500.0,0.00013424,2]
[353884219,1740111045382,-500.0,0.00013424,2]
[353884221,1740111045392,-500.0,0.00013424,2]
[353884223,1740111045402,-500.0,0.00013424,2]
[353884225,1740111045411,-500.0,0.00013424,2]
[353884227,1740111045420,-529.6,0.00013424,2]
[353884229,1740111045429,-500.0,0.00013424,2]
[353884231,1740111045438,-500.0,0.00013424,2]
[353884233,1740111045449,-500.0,0.00013424,2]
[353884235,1740111045457,-500.0,0.00013424,2]
[353884237,1740111045466,-505.75484172,0.00013424,2]
[353884239,1740111045475,-508.41372149,0.00013424,2]
[353884241,1740111045484,-500.0,0.00013424,2]
[353884243,1740111045493,-503.81172762,0.00013424,2]
[353884245,1740111045502,-500.0,0.00013424,2]
[353884247,1740111045511,-515.25685951,0.00013424,2]
[353884249,1740111045520,-500.0,0.00013424,2]
[353884251,1740111045529,-505.48536035,0.00013424,2]
[353884253,1740111045539,-500.0,0.00013424,2]
[353884255,1740111045548,-500.0,0.00013424,2]
[353884257,1740111045557,-154.9609083,0.00013424,2]
[353884259,1740111045566,-505.6464334,0.00013424,2]
[353884261,1740111045575,-504.30377905,0.00013424,2]
[353884263,1740111045584,-500.0,0.00013424,2]
[353884265,1740111045593,-500.0,0.00013424,2]
[353884267,1740111045602,-251.2200796,0.00013424,3]
[353884269,1740111045611,-500.0,0.00013424,2]
[353884271,1740111045620,-523.23929188,0.00013424,2]
[353884273,1740111045629,-500.0,0.00013424,2]
[353884275,1740111045638,-500.0,0.00013424,2]
[353884277,1740111045647,-500.0,0.00013424,2]
[353884279,1740111045658,-500.0,0.00013424,2]
[353884281,1740111045668,-500.0,0.00013424,2]
[353884283,1740111045677,-500.0,0.00013424,2]
[353884285,1740111045687,-402.14,0.00013424,2]
[353884287,1740111045696,-500.0,0.00013424,2]
[353884289,1740111045705,-504.63077381,0.00013424,2]
[353884291,1740111045714,-500.0,0.00013424,2]
[353884293,1740111045723,-152.48,0.00013424,2]
[353884295,1740111045733,-500.0,0.00013424,2]
[353884297,1740111045743,-507.24479554,0.00013424,2]
[353884299,1740111045752,-500.0,0.00013424,2]
[353884301,1740111045763,-291.09140764,0.00013424,2]
[353884303,1740111045773,-505.93091543,0.00013424,2]
[353884305,1740111045784,-500.0,0.00013424,2]
[353884307,1740111045795,-500.0,0.00013424,2]
[353884309,1740111045806,-516.28246494,0.00013424,2]
[353884311,1740111045817,-243.13402731,0.00013424,2]
[353884313,1740111045828,-500.0,0.00013424,2]
[353884315,1740111045837,-451.88,0.00013424,2]
[353884317,1740111045846,-513.16080726,0.00013424,2]
[353884319,1740111045858,-500.0,0.00013424,2]
[353884321,1740111045868,-500.0,0.00013424,2]
[353884323,1740111045877,-500.0,0.00013424,2]
[353884325,1740111045886,-500.0,0.00013424,2]
[353884327,1740111045895,-500.0,0.00013424,2]
[353884329,1740111045907,-500.0,0.00013424,2]
[353884331,1740111045916,-500.0,0.00013424,2]
[353884333,1740111045926,-500.0,0.00013424,2]
[353884335,1740111045936,-502.7644894,0.00013424,2]
[353884337,1740111045945,-251.43981935,0.00013424,2]
[353884339,1740111045955,-500.0,0.00013424,2]
[353884341,1740111045964,-175.86666463,0.00013424,2]
[353884343,1740111045973,-500.0,0.00013424,2]
[353884345,1740111045982,-502.38502609,0.00013424,2]
[353884347,1740111045992,-500.0,0.00013424,2]
[353884349,1740111046001,-500.0,0.00013424,2]
[353884351,1740111046011,-500.0,0.00013424,2]
[353884353,1740111046020,-500.0,0.00013424,2]
[353884355,1740111046029,-500.0,0.00013424,2]
[353884357,1740111046039,-576.6297292,0.00013424,2]
[353884359,1740111046048,-529.10782388,0.00013424,2]
[353884362,1740111046058,-505.42606673,0.00013424,2]
[353884364,1740111046067,-521.85831038,0.00013424,2]
[353884366,1740111046077,-502.84052574,0.00013424,2]
[353884368,1740111046086,-282.62,0.00013424,2]
[353884370,1740111046095,-500.0,0.00013424,7]
[353884372,1740111046105,-500.0,0.00013424,2]
[353884374,1740111046115,-500.0,0.00013424,2]
[353884376,1740111046124,-500.0,0.00013424,2]
[353884378,1740111046133,-525.46,0.00013424,2]
[353884380,1740111046142,-500.0,0.00013424,2]
[353884382,1740111046152,-500.0,0.00013424,2]
[353884384,1740111046162,-501.43420229,0.00013424,2]
[353884386,1740111046172,-501.73302316,0.00013424,2]
[353884388,1740111046181,-500.0,0.00013424,2]
[353884390,1740111046191,-500.0,0.00013424,2]
[353884392,1740111046200,-500.0,0.00013424,2]
[353884394,1740111046210,-505.28169758,0.00013424,2]
[353884396,1740111046219,-500.0,0.00013424,2]
[353884398,1740111046228,-506.21954345,0.00013424,2]
[353884400,1740111046240,-500.0,0.00013424,2]
[353884403,1740111046249,-509.26449,0.00013424,2]
[353884406,1740111046258,-501.63133656,0.00013424,2]
[353884408,1740111046267,-258.13,0.00013424,2]
[353884410,1740111046276,-500.0,0.00013424,2]
[353884412,1740111046285,-500.0,0.00013424,2]
[353884414,1740111046295,-157.19574938,0.00013425,2]
[353884416,1740111046304,-3010.30725997,0.00013429,2]
[353884418,1740111046314,-1819.97559471,0.00013462,2]
[353884420,1740111046323,-157.19574938,0.00013479,2]
[353884422,1740111046332,-500.0,0.00013525,2]
[353884424,1740111046342,-157.19574938,0.00013534,2]
[353884426,1740111046351,-200.0,0.00013589,2]
[353884428,1740111046361,-165.28101263,0.00013598,2]
[353884430,1740111046374,-601.85687937,0.000136,2]
[353884431,1740111046383,-1001.47,0.000136,7]
[353884432,1740111046393,-198.0,0.000136,2]
[353884433,1740111046402,-198.0,0.000136,3]
[353884434,1740111046413,-671.438,0.000136,2]
[353884435,1740111046423,-159.11594875,0.000136,2]
[353884436,1740111046432,-159.11594875,0.000136,2]
[353884437,1740111046443,-159.11594875,0.000136,2]
[353884438,1740111046453,-159.11594875,0.000136,2]
[353884439,1740111046462,-1819.97559471,0.000136,2]
[353884440,1740111046471,-157.19574938,0.00013616,2]
[353884442,1740111046481,-150.0,0.00013631,2]
[353884444,1740111046491,-150.0,0.00013635,2]
[353884446,1740111046504,-1004.94562134,0.0001364,2]
[353884448,1740111046513,-1015.57869933,0.0001364,2]
[353884450,1740111046522,-3010.30725997,0.00013641,2]
[353884452,1740111046532,-150.0,0.00013643,2]
[353884454,1740111046542,-157.19574938,0.00013671,2]
[353884456,1740111046552,-205.05140187,0.00013678,2]
[353884458,1740111046561,-159.11594875,0.00013678,2]
[353884460,1740111046571,-150.0,0.00013679,2]
[353884462,1740111046580,-150.0,0.0001368,2]
[353884464,1740111046590,-657.7291833,0.00013689,2]
[353884466,1740111046599,-285.5133007,0.00013689,2]
[353884468,1740111046608,-150.0,0.00013692,2]
[353884470,1740111046617,-2000.0,0.00013696,2]
[353884472,1740111046626,-200.0,0.00013696,2]
[353884473,1740111046635,-1341.02877,0.00013696,2]
[353884475,1740111046645,-500.0,0.00013697,2]
[353884477,1740111046654,-554.66,0.00013697,2]
[353884479,1740111046664,-496.35,0.00013698,2]
[353884481,1740111046673,-5800.0,0.00013698,2]
[353884483,1740111046683,-151.0,0.00013698,2]
[353884485,1740111046692,-380.785607,0.00013698,2]
[353884487,1740111046703,-287.371936,0.00013698,2]
[353884489,1740111046713,-603.8170227,0.00013698,2]
[353884491,1740111046722,-314.53311496,0.00013698,2]
[353884493,1740111046732,-414.50780813,0.00013698,2]
[353884495,1740111046742,-333.93319447,0.00013698,2]
[353884497,1740111046751,-500.0,0.00013698,2]
[353884499,1740111046762,-383.08780435,0.00013698,2]
[353884501,1740111046772,-508.21568572,0.00013698,2]
[353884503,1740111046781,-196.9165663,0.00013698,2]
[353884505,1740111046792,-525.47627506,0.00013698,2]
[353884507,1740111046801,-475.90333111,0.00013698,2]
[353884510,1740111046811,-303.05886136,0.00013698,2]
[353884512,1740111046821,-179.60963496,0.00013698,2]
[353884514,1740111046831,-500.0,0.00013698,2]
[353884516,1740111046840,-513.02587506,0.00013698,2]
[353884518,1740111046850,-265.85,0.00013698,2]
[353884520,1740111046860,-273.39330425,0.00013698,2]
[353884522,1740111046869,-500.0,0.00013698,2]
[353884524,1740111046878,-500.0,0.00013698,2]
[353884526,1740111046887,-502.98901734,0.00013698,2]
[353884528,1740111046896,-500.0,0.00013698,2]
[353884529,1740111046906,-416.6,0.00013698,2]
[353884532,1740111046916,-500.0,0.00013698,2]
[353884533,1740111046926,-434.4773972,0.00013698,2]
[353884535,1740111046935,-502.26488394,0.00013698,2]
[353884538,1740111046945,-449.2302676,0.00013698,2]
[353884540,1740111046955,-501.15060771,0.00013698,2]
[353884541,1740111046964,-331.28628875,0.00013698,2]
[353884543,1740111046973,-494.26178612,0.00013698,2]
[353884545,1740111046983,-513.7020083,0.00013698,2]
[353884547,1740111046992,-286.0764282,0.00013698,2]
[353884549,1740111047002,-547.38449443,0.00013698,2]
[353884551,1740111047011,-500.0,0.00013698,2]
[353884553,1740111047020,-500.0,0.00013698,2]
[353884555,1740111047029,-320.52495945,0.00013698,2]
[353884557,1740111047038,-189.46094585,0.00013698,2]
[353884559,1740111047049,-500.0,0.00013698,2]
[353884561,1740111047058,-500.0,0.00013698,2]
[353884563,1740111047067,-521.46770299,0.00013698,2]
[353884565,1740111047076,-500.0,0.00013698,2]
[353884567,1740111047085,-500.0,0.00013698,2]
[353884569,1740111047095,-500.0,0.00013698,2]
[353884571,1740111047104,-516.52540554,0.00013698,2]
[353884573,1740111047113,-446.1628723,0.00013698,2]
[353884575,1740111047123,-500.0,0.00013698,2]
[353884577,1740111047133,-500.0,0.00013698,2]
[353884579,1740111047142,-500.61817563,0.00013698,2]
[353884581,1740111047151,-500.0,0.00013698,2]
[353884583,1740111047160,-196.46615424,0.00013698,2]
[353884585,1740111047169,-500.0,0.00013698,2]
[353884603,1740111047178,-421.30824482,0.00013698,2]
[353884605,1740111047346,-500.0,0.00013698,2]
[353884607,1740111047356,-500.0,0.00013698,2]
[353884610,1740111047370,-156.89244405,0.00013698,2]
[353884612,1740111047380,-569.54,0.00013698,2]
[353884614,1740111047389,-431.79234673,0.00013698,2]
[353884616,1740111047399,-500.0,0.00013698,2]
[353884617,1740111047409,-500.0,0.00013698,2]
[353884620,1740111047418,-319.75265043,0.00013698,2]
[353884622,1740111047427,-500.0,0.00013698,2]
[353884623,1740111047438,-557.73361741,0.00013698,2]
[353884625,1740111047447,-526.1304121,0.00013698,2]
[353884627,1740111047456,-500.0,0.00013698,2]
[353884630,1740111047466,-336.79736836,0.00013698,2]
[353884632,1740111047476,-237.57508791,0.00013698,2]
[353884634,1740111047486,-435.97058961,0.00013698,2]
[353884636,1740111047494,-500.0,0.00013698,2]
[353884638,1740111047503,-503.45223845,0.00013698,2]
[353884640,1740111047513,-322.48009114,0.00013698,2]
[353884642,1740111047522,-500.0,0.00013698,2]
[353884644,1740111047532,-346.42662162,0.00013698,2]
[353884646,1740111047542,-500.0,0.00013698,2]
[353884648,1740111047551,-500.0,0.00013698,2]
[353884650,1740111047560,-357.89,0.00013698,2]
[353884652,1740111047569,-500.0,0.00013698,2]
[353884654,1740111047578,-522.60415169,0.00013698,2]
[353884656,1740111047587,-329.93518622,0.00013698,2]
[353884658,1740111047597,-239.20296203,0.00013698,2]
[353884660,1740111047606,-500.0,0.00013698,2]
[353884662,1740111047616,-164.71022922,0.00013698,2]
[353884664,1740111047625,-500.0,0.00013698,2]
[353884666,1740111047635,-500.0,0.00013698,2]
[353884668,1740111047644,-404.33556695,0.00013698,2]
[353884670,1740111047653,-500.0,0.00013698,2]
[353884672,1740111047663,-500.0,0.00013698,2]
[353884674,1740111047672,-463.96564462,0.00013698,2]
[353884676,1740111047682,-176.40999819,0.00013698,2]
[353884678,1740111047692,-500.0,0.00013698,2]
[353884680,1740111047701,-500.0,0.00013698,2]
[353884682,1740111047710,-500.0,0.00013698,2]
[353884684,1740111047719,-500.0,0.00013698,2]
[353884686,1740111047728,-470.14893628,0.00013698,2]
[353884688,1740111047737,-500.0,0.00013698,2]
[353884690,1740111047747,-500.0,0.00013698,2]
[353884691,1740111047756,-216.79286376,0.00013698,2]
[353884694,1740111047766,-643.18546383,0.00013698,2]
[353884696,1740111047775,-501.24640035,0.00013698,2]
[353884697,1740111047784,-500.0,0.00013698,2]
[353884699,1740111047793,-156.66388568,0.00013698,2]
[353884701,1740111047802,-323.04717806,0.00013698,2]
[353884703,1740111047811,-500.0,0.00013698,2]
[353884705,1740111047820,-500.0,0.00013698,2]
[353884707,1740111047829,-500.0,0.00013698,2]
[353884709,1740111047839,-599.15174554,0.00013698,2]
[353884711,1740111047848,-447.81047909,0.00013698,2]
[353884713,1740111047858,-500.0,0.00013698,2]
[353884715,1740111047869,-500.0,0.00013698,2]
[353884717,1740111047878,-500.0,0.00013698,2]
[353884719,1740111047887,-500.0,0.00013698,2]
[353884721,1740111047897,-500.0,0.00013698,2]
[353884724,1740111047908,-500.0,0.00013698,2]
[353884726,1740111047918,-500.0,0.00013698,2]
[353884728,1740111047927,-179.7737841,0.00013698,2]
[353884729,1740111047937,-500.0,0.00013698,2]
[353884731,1740111047946,-500.0,0.00013698,2]
[353884734,1740111047956,-492.71664669,0.00013698,2]
[353884736,1740111047965,-500.0,0.00013698,2]
[353884738,1740111047975,-500.0,0.00013698,2]
[353884740,1740111047984,-740.79,0.00013698,2]
[353884742,1740111047993,-500.0,0.00013698,2]
[353884744,1740111048003,-500.0,0.00013698,2]
[353884746,1740111048012,-500.0,0.00013698,2]
[353884748,1740111048021,-500.0,0.00013698,2]
[353884750,1740111048031,-500.0,0.00013698,2]
[353884752,1740111048040,-500.0,0.00013698,2]
[353884754,1740111048050,-500.0,0.00013698,2]
[353884756,1740111048059,-500.0,0.00013698,2]
[353884758,1740111048069,-500.0,0.00013698,2]
[353884760,1740111048079,-500.0,0.00013698,2]
[353884762,1740111048088,-538.42903447,0.00013698,2]
[353884764,1740111048098,-500.0,0.00013698,2]
[353884766,1740111048107,-500.0,0.00013698,2]
[353884768,1740111048117,-500.0,0.00013698,2]
[353884770,1740111048126,-500.0,0.00013698,2]
[353884772,1740111048136,-500.0,0.00013698,2]
[353884774,1740111048145,-500.0,0.00013698,2]
[353884776,1740111048155,-500.0,0.00013698,2]
[353884778,1740111048164,-500.0,0.00013698,2]
[353884780,1740111048174,-1000.0,0.00013698,2]
[353884781,1740111048183,-500.0,0.00013698,2]
[353884784,1740111048193,-500.0,0.00013698,2]
[353884785,1740111048203,-500.0,0.00013698,2]
[353884788,1740111048213,-561.87497256,0.00013698,2]
[353884789,1740111048222,-500.0,0.00013698,2]
[353884791,1740111048231,-500.0,0.00013698,2]
[353884793,1740111048241,-325.98642862,0.00013698,2]
[353884796,1740111048250,-500.0,0.00013698,2]
[353884798,1740111048260,-500.0,0.00013698,2]
[353884800,1740111048270,-477.12384363,0.00013698,2]
[353884801,1740111048279,-500.0,0.00013698,2]
[353884803,1740111048288,-500.0,0.00013698,2]
[353884805,1740111048299,-500.0,0.00013698,2]
[353884807,1740111048309,-500.0,0.00013698,2]
[353884809,1740111048318,-500.0,0.00013698,2]
[353884811,1740111048327,-500.0,0.00013698,2]
[353884813,1740111048336,-500.0,0.00013698,2]
[353884815,1740111048346,-408.53,0.00013698,2]
[353884817,1740111048356,-500.0,0.00013698,2]
[353884820,1740111048370,-500.0,0.00013698,2]
[353884822,1740111048379,-500.0,0.00013698,2]
[353884824,1740111048389,-500.0,0.00013698,2]
[353884826,1740111048399,-456.55920283,0.00013698,2]
[353884827,1740111048409,-500.0,0.00013698,2]
[353884830,1740111048419,-500.0,0.00013698,2]
[353884831,1740111048428,-500.0,0.00013698,2]
[353884834,1740111048438,-500.0,0.00013698,2]
[353884836,1740111048449,-500.0,0.00013698,2]
[353884837,1740111048459,-500.0,0.00013698,2]
[353884840,1740111048468,-413.7897839,0.00013698,2]
[353884842,1740111048478,-280.13555998,0.00013698,2]
[353884844,1740111048488,-500.0,0.00013698,2]
[353884846,1740111048497,-500.0,0.00013698,2]
[353884848,1740111048507,-306.36830661,0.00013698,2]
[353884849,1740111048516,-500.0,0.00013698,2]
[353884852,1740111048525,-500.0,0.00013698,2]
[353884853,1740111048535,-500.0,0.00013698,2]
[353884855,1740111048545,-500.0,0.00013698,2]
[353884858,1740111048555,-500.0,0.00013698,2]
[353884859,1740111048564,-500.0,0.00013698,2]
[353884861,1740111048574,-500.0,0.00013698,2]
[353884863,1740111048583,-500.0,0.00013698,2]
[353884866,1740111048592,-500.0,0.00013698,2]
[353884868,1740111048602,-500.0,0.00013698,2]
[353884869,1740111048611,-500.0,0.00013698,2]
[353884870,1740111048621,-500.0,0.00013698,2]
[353884871,1740111048630,-629.89862425,0.00013698,2]
[353884872,1740111048639,-500.0,0.00013698,2]
[353884873,1740111048648,-533.60799738,0.00013698,2]
[353884874,1740111048657,-500.0,0.00013698,2]
[353884875,1740111048666,-500.0,0.00013698,2]
[353884876,1740111048675,-500.0,0.00013698,2]
[353884877,1740111048685,-518.59988146,0.00013698,2]
[353884878,1740111048694,-546.58030469,0.00013698,2]
[353884880,1740111048703,-500.0,0.00013698,2]
[353884882,1740111048713,-500.0,0.00013698,2]
[353884883,1740111048722,-500.0,0.00013698,2]
[353884885,1740111048732,-500.0,0.00013698,2]
[353884887,1740111048741,-500.0,0.00013698,2]
[353884889,1740111048751,-500.0,0.00013698,7]
[353884891,1740111048760,-500.0,0.00013698,2]
[353884893,1740111048770,-500.0,0.00013698,2]
[353884895,1740111048780,-500.0,0.00013698,2]
[353884897,1740111048789,-500.0,0.00013698,2]
[353884899,1740111048800,-500.0,0.00013698,2]
[353884902,1740111048810,-500.0,0.00013698,2]
[353884903,1740111048819,-500.0,0.00013698,2]
[353884905,1740111048829,-500.0,0.00013698,2]
[353884907,1740111048839,-500.0,0.00013698,2]
[353884909,1740111048849,-500.0,0.00013698,2]
[353884911,1740111048858,-500.0,0.00013698,2]
[353884914,1740111048868,-475.42865213,0.00013698,2]
[353884916,1740111048877,-500.0,0.00013699,2]
[353884917,1740111048886,-500.0,0.00013699,2]
[353884919,1740111048895,-500.0,0.00013699,2]
[353884921,1740111048906,-500.0,0.00013699,2]
[353884923,1740111048914,-500.0,0.00013699,2]
[353884925,1740111048923,-500.0,0.00013699,2]
[353884927,1740111048933,-4000.0,0.00013699,2]
[353884929,1740111048942,-341.36,0.00013699,2]
[353884931,1740111048951,-445.52,0.00013699,2]
[353884933,1740111048960,-200.0,0.00013699,2]
[353884935,1740111048970,-500.0,0.00013699,2]
[353884937,1740111048979,-4552.06464142,0.00013699,2]
[353884961,1740111049198,-277.224,0.00013699,2]
[353884963,1740111049212,-484.10135858,0.00013699,2]
[353884966,1740111049222,-6015.32,0.00013699,2]
[353884967,1740111049232,-395.31,0.00013699,2]
[353884969,1740111049241,-150.0,0.00013699,2]
[353884971,1740111049251,-500.0,0.00013699,2]
[353884973,1740111049260,-245.37622187,0.00013699,2]
[353884975,1740111049269,-554.66,0.00013699,2]
[353884977,1740111049278,-554.66,0.00013699,2]
[353884979,1740111049288,-554.66,0.00013699,2]
[353884981,1740111049298,-554.66,0.00013699,2]
[353884983,1740111049307,-554.66,0.00013699,2]
[353884985,1740111049317,-554.66,0.00013699,2]
[353884987,1740111049326,-1502.11,0.00013699,2]
[353884989,1740111049336,-1502.11,0.00013699,2]
[353884991,1740111049345,-1502.11,0.00013699,2]
[353884993,1740111049355,-1502.11,0.00013699,2]
[353884995,1740111049366,-1502.11,0.00013699,2]
[353884997,1740111049376,-1502.11,0.00013699,2]
[353884999,1740111049385,-500.0,0.00013699,2]
[353885001,1740111049394,-990.0,0.00013699,2]
[353885003,1740111049404,-620.0,0.000137,2]
[353885005,1740111049414,-75707.4072221,0.000137,4]
[353885007,1740111049425,-66388.97674081,0.000137,4]
[353885009,1740111049434,-70015.08139825,0.000137,5]
[353885012,1740111049446,-21655.42482339,0.000137,5]
[353885014,1740111049457,-1081.40204556,0.000137,5]
[353885016,1740111049468,-2200.49300248,0.000137,5]
[353885018,1740111049479,-701.74610069,0.000137,5]
[353885020,1740111049490,-368.49929451,0.000137,5]
[353885023,1740111049501,-915.47591036,0.000137,5]
[353885025,1740111049512,-2007.24781503,0.000137,5]
[353885045,1740111049700,-6790.99900856,0.000137,5]
[353885048,1740111049711,-263066.14875563,0.000137,5]